[Event "79th LOTTO Polish-ch 2022"]
[Site "Kruszwica"]
[Date "2022.05.12"]
[Round "2.4"]
[White "Gumularz, Szymon"]
[Black "Warakomski, Tomasz"]
[Result "1-0"]
[ECO "A80"]
[WhiteElo "2513"]
[BlackElo "2534"]
[Annotator "TA"]
[PlyCount "89"]
[EventDate "2022.05.10"]
[EventType "k.o."]
[EventCountry "POL"]
[SourceTitle "playchess.com"]
[Source "ChessBase"]
[SourceQuality "1"]
[TimeControl "40/5400+30:1800+30"]

{[%evp 9,88,26,29,25,35,22,45,40,61,47,82,70,77,18,3,20,39,22,41,14,13,8,10,17,22,34,62,35,47,40,49,52,63,58,73,86,174,168,169,167,179,64,75,65,47,77,64,56,58,15,352,282,299,270,276,299,285,302,288,293,405,404,387,260,248,0,492,347,281,165,175,135,156,0,267,0,358,0,577,577,29999]} 1. d4 {[%emt 1:15:42]} f5 {[%emt 1:15:41]} 2. Nf3 {[%emt 0:00:44]} Nf6 {[%emt 0:00:26]} 3. c4 {[%emt 0:00:30]} g6 {[%emt 0:00:32]} 4. e3 {[%emt 0:00:26]} Bg7 {[%emt 0:00:28]} 5. b4 {[%emt 0:00:23]} O-O {[%emt 0:00:35]} 6. Bb2 {[%emt 0:00:23] A84: Dutch Defence: 2 c4 Miscellaneous.} d6 {[%emt 0:00:33][%cal Oe7e5]} 7. Nc3 {[%emt 0:00:22]} Qe8 {[%emt 0:01:12]} 8. c5 {[%emt 0:00:51] [#] White is slightly better.} a5 $146 {[%emt 0:00:55]} ({Predecessor:} 8... Ne4 9. Bc4+ e6 10. cxd6 cxd6 11. O-O Nxc3 12. Bxc3 Nd7 13. Rc1 Nf6 14. b5 Ne4 {0-1 (77) Goryachkina,A (2485)-Bodnaruk,A (2475) Sochi 2016}) 9. a3 {[%emt 0:00:49]} Kh8 {[%emt 0:00:48]} 10. Bc4 $1 {[%emt 0:00:35]} c6 {[%emt 0:00:43]} 11. cxd6 {[%emt 0:01:44]} (11. O-O $16) 11... exd6 $11 {[%emt 0:00:23]} 12. O-O {[%emt 0:00:32]} Nbd7 {[%emt 0:00:48][%cal Bb8d7,Bd7b6,Bb6d5][%mdl 32]} 13. b5 {[%emt 0:00:32]} Ne4 {[%emt 0:01:12]} 14. Qc2 {[%emt 0:00:40]} Nb6 {[%emt 0:01:27]} 15. Be2 {[%emt 0:01:05]} Nxc3 {[%emt 0:00:38]} 16. Bxc3 {[%emt 0:00:22]} cxb5 {[%emt 0:00:21]} 17. d5 {[%emt 0:00:34]} Nxd5 {[%emt 0:00:35]} 18. Bxg7+ {[%emt 0:00:23]} Kxg7 {[%emt 0:00:21]} 19. Rfd1 {[%emt 0:00:31]} Nf6 {[%emt 0:00:35]} 20. Rxd6 {[%emt 0:00:45]} Ra6 {[%emt 0:00:23] Against Rb6} 21. Rd4 {[%emt 0:01:27][%mdl 1024] White has compensation. White is more active.} Rf7 {[%emt 0:02:25]} 22. Qb2 {[%emt 0:00:24]} Bd7 {[%emt 0:00:25]} (22... Rb6 $16 {keeps fighting.}) 23. Rad1 {[%emt 0:00:33] Threatens to win with Ng5.} h6 {[%emt 0:01:22] Inhibits Ng5.} 24. h4 $1 {[%emt 0:00:46]} Kh7 {[%emt 0:01:17] [#]} 25. Bxb5 {[%emt 0:02:09]} Rb6 $14 {[%emt 0:02:49] [#]} 26. Bxd7 {[%emt 0:01:58]} Rxb2 {[%emt 0:00:21]} 27. Bxe8 {[%emt 0:00:21]} Nxe8 {[%emt 0:00:21]} 28. Ne5 {[%emt 0:00:25]} Rg7 {[%emt 0:00:42]} 29. Rd8 {[%emt 0:00:58]} Nc7 {[%emt 0:01:38][%mdl 8192]} (29... Nf6 $11) 30. Rb8 {[%emt 0:01:30] Rdd8 is the strong threat.} Ne6 {[%emt 0:03:07] Inhibits Rdd8.} 31. Rd6 {[%emt 0:00:33]} Re7 {[%emt 0:00:31] [#]} 32. Nc6 $1 {[%emt 0:00:33][%mdl 512]} Rb6 {[%emt 0:00:53]} 33. Nxe7 {[%emt 0:00:28]} Rxd6 {[%emt 0:00:21]} 34. Rxb7 $18 {[%emt 0:00:22][%mdl 4096] Endgame KRN-KRN} Rd3 {[%emt 0:00:53]} 35. Nxf5+ {[%emt 0:01:50]} Kh8 {[%emt 0:00:29]} 36. Rb8+ {[%emt 0:00:32]} Kh7 {[%emt 0:00:21] [#]} 37. Rb7+ $2 {[%emt 0:00:21]} (37. Rb6 $1 $18) 37... Kg8 $2 {[%emt 0:00:34][%mdl 8192]} (37... Kh8 $11) 38. Ne7+ {[%emt 0:00:31]} Kf7 {[%emt 0:00:42]} 39. Nd5+ {[%emt 0:01:12]} (39. Ra7 $142) 39... Kf8 {[%emt 0:00:32]} 40. Rb8+ {[%emt 0:00:21]} Kf7 {[%emt 0:00:45]} 41. Rb7+ $2 {[%emt 0:30:21]} (41. Rb5 $16) 41... Kg8 $2 {[%emt 0:30:51][%mdl 8192]} (41... Kf8 $11) 42. Ne7+ $2 {[%emt 0:01:06]} (42. Nf6+ $18 Kf8 43. a4) 42... Kh7 $2 {[%emt 0:00:36][%mdl 8192]} (42... Kf7 $11) 43. Nd5+ $2 {[%emt 0:00:32]} (43. Ra7 $18) 43... Kh8 $2 {[%emt 0:00:23][%mdl 8192]} (43... Kg8 $1 $11 {and Black has nothing to worry.}) 44. Nf6 {[%emt 0:00:23][%csl Gf6][%cal Rb7h7]} Rc3 {[%emt 0:00:39]} 45. Rh7# {Weighted Error Value: White=0.48/Black=1.03} 1-0

[Event "79th LOTTO Polish-ch 2022"]
[Site "Kruszwica"]
[Date "2022.05.12"]
[Round "2.4"]
[White "Kosakowski, Jakub"]
[Black "Nasuta, Grzegorz"]
[Result "1/2-1/2"]
[ECO "B53"]
[WhiteElo "2435"]
[BlackElo "2511"]
[Annotator "TA"]
[PlyCount "96"]
[EventDate "2022.05.10"]
[EventType "k.o."]
[EventCountry "POL"]
[SourceTitle "playchess.com"]
[Source "ChessBase"]
[SourceQuality "1"]
[TimeControl "40/5400+30:1800+30"]

{[%evp 9,96,17,19,20,34,0,0,0,0,0,12,0,9,0,0,-13,0,0,0,-19,0,-10,0,-74,-82,-81,-70,-118,-77,-110,-85,-82,-49,-58,-45,-58,-50,-48,-44,-51,-42,-54,0,-54,-40,-86,-86,-90,0,-55,-67,-62,-56,-68,-56,-56,-68,-55,-44,-66,-52,-58,-4,-16,-18,-26,-23,-31,-26,-31,-31,-40,-41,-44,-43,-48,-33,-37,-37,-80,-72,-83,-19,-28,-18,-34,-26,-26,-25]} 1. e4 {[%emt 1:15:44]} c5 {[%emt 1:15:41]} 2. Nf3 {[%emt 0:00:23]} d6 {[%emt 0:00:21]} 3. d4 {[%emt 0:00:22]} cxd4 {[%emt 0:00:21]} 4. Qxd4 {[%emt 0:00:23]} Nc6 {[%emt 0:00:25]} 5. Qe3 {[%emt 0:00:22]} Nf6 {[%emt 0:00:31]} 6. Be2 {[%emt 0:00:29] B53: Sicilian: 2...d6: Lines with Qxd4.} g6 {[%emt 0:00:23]} 7. h3 {[%emt 0:00:25]} Bg7 {[%emt 0:00:22]} 8. O-O {[%emt 0:00:23] The position is equal.} O-O {[%emt 0:00:24]} 9. Rd1 {[%emt 0:00:22]} Be6 {[%emt 0:00:25]} 10. Nc3 {[%emt 0:00:23]} a6 {[%emt 0:03:19]} 11. a3 {[%emt 0:00:50]} Rc8 {[%emt 0:00:24]} 12. Nd5 {[%emt 0:01:44]} Bxd5 {[%emt 0:00:38]} 13. exd5 {[%emt 0:00:22]} Na5 {[%emt 0:00:22][%cal Bc6a5,Ba5c4,Bc4b6][%mdl 32]} ({Much less strong is} 13... Ne5 14. Nxe5 dxe5 15. c4 $16) 14. Rb1 {[%emt 0:04:33]} Qc7 {[%emt 0:03:05]} 15. c3 {[%emt 0:02:06]} b5 {[%emt 0:00:20][%cal Bb7b5,Bb5a4][%mdl 32] [#]} 16. a4 $146 {[%emt 0:02:59]} (16. Ne1 $11) ({Predecessor:} 16. Qd3 Qc4 17. Bg5 Qxd3 18. Bxd3 Nc4 19. Bxf6 Bxf6 20. Ne1 a5 21. Be2 {½-½ (21) Demchenko,A (2679)-Volokitin,A (2634) Germany 2019}) 16... Nc4 $17 {[%emt 0:01:38]} 17. Qd3 {[%emt 0:00:22]} bxa4 {[%emt 0:00:47]} 18. Ra1 {[%emt 0:00:37]} (18. Ne1 $15) 18... Nb6 {[%emt 0:00:53]} 19. Qxa6 {[%emt 0:00:46]} Nfxd5 {[%emt 0:00:22][%cal Oa4a3]} 20. Nd4 {[%emt 0:00:38]} Rfd8 {[%emt 0:04:27]} 21. Qd3 {[%emt 0:00:35]} Qc5 {[%emt 0:00:46]} 22. Nb5 {[%emt 0:01:23]} e6 {[%emt 0:01:37]} 23. Qe4 {[%emt 0:00:38]} Rd7 {[%emt 0:01:13]} 24. Qh4 {[%emt 0:01:14]} Qc6 {[%emt 0:01:23]} 25. Nd4 {[%emt 0:00:39]} Qc7 {[%emt 0:00:26]} (25... Qa8 $15) 26. Nb5 {[%emt 0:00:25]} (26. Bb5 $11) 26... Qd8 {[%emt 0:00:40]} 27. Qe4 {[%emt 0:00:35]} (27. Qxd8+ $15 Rdxd8 28. g3) 27... Nf6 {[%emt 0:00:42]} 28. Qh4 {[%emt 0:00:37]} Nfd5 {[%emt 0:01:04][%cal Bf6d5,Bd5e7,Be7c6][%mdl 32]} 29. Qe4 {[%emt 0:00:23]} Ne7 {[%emt 0:01:08]} 30. Be3 {[%emt 0:00:38]} d5 {[%emt 0:00:38]} 31. Qb4 {[%emt 0:00:54]} Nc6 {[%emt 0:00:42]} 32. Bxb6 {[%emt 0:01:12]} Qxb6 {[%emt 0:00:26]} 33. Qxa4 {[%emt 0:00:22]} Ne5 {[%emt 0:00:26]} 34. b3 {[%emt 0:00:34]} Rb7 {[%emt 0:00:28]} 35. c4 {[%emt 0:00:29]} Rd8 {[%emt 0:00:46]} ({Better is} 35... Nd7 $15 36. Rac1 Bh6) 36. Rac1 {[%emt 0:00:38]} dxc4 {[%emt 0:00:24] [#] Strongly threatening ...Rxd1+.} 37. bxc4 {[%emt 0:00:28]} Rxd1+ {[%emt 0:00:47]} 38. Rxd1 {[%emt 0:00:27][%cal Oc4c5]} Rb8 {[%emt 0:00:21]} 39. Qb4 {[%emt 0:00:32]} Bf8 {[%emt 0:00:23]} 40. Qc3 {[%emt 0:00:21]} Qc5 {[%emt 0:00:22][%cal Ob8b5] ...Rxb5! is the strong threat.} 41. Qg3 {[%emt 0:31:29]} Rc8 {[%emt 0:30:28]} 42. Rc1 {[%emt 0:00:31]} Bg7 {[%emt 0:00:29]} 43. Bf1 {[%emt 0:00:25]} h5 {[%emt 0:00:26]} 44. Nc3 {[%emt 0:00:47]} Qa3 {[%emt 0:00:32]} ({Much worse is} 44... Nxc4 45. Nd1 Qa5 46. Bxc4 $11 (46. Rxc4 Rxc4 47. Bxc4 Qe1+ 48. Bf1 Qxd1 $17)) 45. Qf4 {[%emt 0:00:53] [#]} Qe7 {[%emt 0:01:00]} ({Black should play} 45... Nf3+ $1 $17 46. gxf3 Bxc3) 46. Ne4 $11 {[%emt 0:00:24]} Nd7 {[%emt 0:00:24]} 47. Rd1 {[%emt 0:01:50]} Nc5 {[%emt 0:00:28]} 48. Nxc5 {[%emt 0:00:25]} Rxc5 {[%emt 0:00:38] Weighted Error Value: White=0.15 (very precise) /Black=0.13 (very precise)} 1/2-1/2

[Event "79th LOTTO Polish-ch 2022"]
[Site "Kruszwica"]
[Date "2022.05.12"]
[Round "2.5"]
[White "Piorun, Kacper"]
[Black "Teclaf, Pawel"]
[Result "1-0"]
[ECO "D20"]
[WhiteElo "2635"]
[BlackElo "2537"]
[Annotator "TA"]
[PlyCount "161"]
[EventDate "2022.05.10"]
[EventType "k.o."]
[EventCountry "POL"]
[SourceTitle "playchess.com"]
[Source "ChessBase"]
[SourceQuality "1"]
[TimeControl "40/5400+30:1800+30"]

{[%evp 9,161,9,59,0,0,-3,-10,-9,20,8,26,9,18,0,24,9,31,41,35,33,39,6,18,9,20,17,14,20,52,31,30,3,27,11,25,1,19,18,19,9,27,9,43,45,68,52,108,108,113,116,125,116,143,158,141,138,145,141,157,142,152,160,157,163,167,164,167,161,175,151,167,0,168,152,157,135,187,187,187,176,204,109,214,187,187,187,197,197,185,185,220,207,200,189,208,195,211,211,221,153,154,150,188,188,211,211,211,211,211,211,211,211,211,211,211,211,211,194,194,187,180,180,180,180,211,211,211,211,1916,1923,1617,1463,1159,562,494,0,0,0,8,8,8,8,8,8,29975,29977,29977,29978,29978,29979,29980,29980,29980,29980]} 1. d4 {[%emt 1:25:54]} d5 {[%emt 1:25:56]} 2. c4 {[%emt 0:00:28]} dxc4 {[%emt 0:00:28]} 3. e3 {[%emt 0:00:27]} e5 {[%emt 0:00:34]} 4. Nf3 {[%emt 0:00:37]} exd4 {[%emt 0:00:34]} 5. Bxc4 {[%emt 0:00:28]} Bd6 {[%emt 0:00:54]} (5... Bb4+ $11 6. Bd2 Bxd2+ 7. Qxd2 (7. Kxd2 dxe3+ 8. Ke2 Qf6 $17) 7... Nf6) 6. Nxd4 {[%emt 0:01:10] D20: Queen's Gambit Accepted: 3 e3 and 3 e4.} (6. O-O $14) 6... Nf6 $11 {[%emt 0:00:43]} 7. Nc3 {[%emt 0:00:28]} O-O {[%emt 0:00:37] [#]} 8. Qc2 $146 {[%emt 0:00:28] The position is equal.} ({Predecessor:} 8. O-O Nbd7 9. Nf3 Ne5 10. Nxe5 Bxe5 11. Qxd8 Rxd8 12. Rd1 Bg4 13. f3 Bxc3 14. Rxd8+ Rxd8 15. bxc3 {0-1 (50) Kizito,J-Kalugo,G (1766) Kampala 2021}) 8... Nbd7 {[%emt 0:01:09]} (8... a6 {is interesting.} 9. O-O c5 10. Nf5 Bxf5 11. Qxf5 Nc6) 9. b3 {[%emt 0:00:41]} Ne5 {[%emt 0:01:07]} (9... Re8 {looks sharper.} 10. O-O c6 11. Rd1 Ne5) 10. Be2 $1 {[%emt 0:00:28]} Qe7 {[%emt 0:00:44]} 11. h3 {[%emt 0:00:37]} Rd8 {[%emt 0:00:32]} 12. Bb2 {[%emt 0:00:31]} Ba3 {[%emt 0:00:59]} 13. Bxa3 Qxa3 {[%emt 0:00:29]} 14. O-O {[%emt 0:01:21]} Qe7 {[%emt 0:00:35]} 15. Rab1 {[%emt 0:01:15]} a5 {[%emt 0:00:34]} 16. a3 {[%emt 0:00:41]} h6 {[%emt 0:00:48]} 17. b4 {[%emt 0:00:34]} axb4 {[%emt 0:00:29]} 18. axb4 {[%emt 0:00:28]} Bd7 {[%emt 0:00:33]} 19. Rfc1 {[%emt 0:00:36]} Rac8 {[%emt 0:00:33]} 20. Na4 {[%emt 0:00:50]} Bxa4 {[%emt 0:00:39]} (20... Nc6 {with more complications.} 21. Nxc6 Bxc6 22. Qc5 Qe6) 21. Qxa4 {[%emt 0:00:27]} c6 {[%emt 0:00:31]} 22. Qa7 {[%emt 0:00:37]} Nd5 {[%emt 0:00:46]} (22... Ne4 {looks sharper.} 23. Qa2 Qf6 24. Bf1 Qg6) 23. Qc5 {[%emt 0:01:23]} Qf6 {[%emt 0:00:31]} 24. Qc2 {[%emt 0:00:41]} Ne7 {[%emt 0:01:11]} 25. Qe4 {[%emt 0:00:42]} N5g6 {[%emt 0:00:37]} 26. Bg4 {[%emt 0:00:36][%cal Be2g4,Bg4d7,Bd7c6][%mdl 32]} Ra8 {[%emt 0:00:33]} 27. b5 {[%emt 0:00:48][%cal Rb5c6]} Re8 {[%emt 0:00:28]} ({Black should play} 27... Ra2 $14) 28. Bd7 $16 {[%emt 0:00:39]} Red8 {[%emt 0:00:40]} 29. bxc6 {[%emt 0:00:31]} bxc6 {[%emt 0:00:28]} 30. Bxc6 {[%emt 0:00:34]} Rab8 {[%emt 0:00:29]} 31. Rxb8 {[%emt 0:00:33]} Rxb8 {[%emt 0:00:28]} 32. Bb5 {[%emt 0:00:30]} Qd6 {[%emt 0:00:34] Against Rc7} 33. Bd3 {[%emt 0:00:36] White is much more active.} Qd7 {[%emt 0:00:35]} 34. h4 {[%emt 0:00:40][%cal Bh3h4,Bh4h5][%mdl 32]} Nd5 {[%emt 0:00:29]} 35. h5 {[%emt 0:00:33]} Nf6 {[%emt 0:00:27]} 36. Qc6 {[%emt 0:00:32]} Ne5 {[%emt 0:00:36]} 37. Qxd7 {[%emt 0:00:29]} Nexd7 {[%emt 0:00:29]} 38. Be2 {[%emt 0:00:27]} Ne5 {[%emt 0:00:33]} 39. Kh2 {[%emt 0:00:35]} Re8 {[%emt 0:00:32]} 40. Kg1 $2 {[%emt 0:00:30]} ({Better is} 40. Rc7 $18) 40... Kf8 $2 {[%emt 0:00:29]} (40... Rb8 $11) 41. Rb1 {[%emt 0:30:30]} Rc8 {[%emt 0:30:28]} 42. f4 {[%emt 0:00:30]} Neg4 {[%emt 0:00:33]} (42... Ned7 $16 {was called for.} 43. Bf3 Re8) 43. e4 $1 $18 {[%emt 0:00:29][%cal Be3e4,Be4e5][%mdl 32] Strongly threatening e5.} Ne3 {[%emt 0:00:29]} 44. e5 {[%emt 0:00:28]} Ne4 {[%emt 0:00:30]} 45. Bf3 {[%emt 0:00:32]} (45. Rb3 $18 Nc2 46. Nxc2 Rxc2 47. Bg4) 45... Nc3 {[%emt 0:00:30]} (45... Nd2 $16 {was necessary.} 46. Rb4 Nxf3+ 47. Nxf3 Ng4) 46. Re1 {[%emt 0:00:30]} Ned5 {[%emt 0:00:31]} 47. g3 {[%emt 0:00:29]} Rd8 {[%emt 0:00:31][%cal Od5f4]} 48. Nf5 {[%emt 0:00:31]} Ne7 {[%emt 0:00:30]} 49. Nd6 {[%emt 0:00:30]} Nc8 {[%emt 0:00:28]} 50. Nb7 {[%emt 0:00:31]} Rd3 {[%emt 0:00:29]} 51. Kg2 {[%emt 0:00:29]} Rd2+ {[%emt 0:00:28]} 52. Kf1 {[%emt 0:00:30] Black must now prevent Rc1.} Rd3 {[%emt 0:00:28]} 53. Kf2 {[%emt 0:00:28] And now Rc1 would win.} Nb6 {[%emt 0:00:27]} 54. Nc5 {[%emt 0:00:31]} Rd2+ {[%emt 0:00:30]} 55. Kf1 {[%emt 0:00:30]} Nc4 {[%emt 0:00:40]} 56. Rc1 {[%emt 0:00:33]} Ne3+ {[%emt 0:00:31]} 57. Ke1 {[%emt 0:00:28]} Rc2 {[%emt 0:00:28]} 58. Rxc2 {[%emt 0:00:30]} Nxc2+ {[%emt 0:00:28][%mdl 4096] Endgame KBN-KNN} 59. Kd2 {[%emt 0:00:28]} Nd4 {[%emt 0:00:27]} 60. Kxc3 {[%emt 0:00:32]} Nxf3 {[%emt 0:00:28] KN-KN} 61. Kd3 {[%emt 0:00:29]} Ke7 {[%emt 0:00:28]} 62. Ke3 {[%emt 0:00:32]} Ne1 {[%emt 0:00:36]} 63. Kd2 {[%emt 0:00:31]} Nf3+ {[%emt 0:00:28]} 64. Ke2 $1 {[%emt 0:00:27]} Nd4+ {[%emt 0:00:29] [#]} 65. Ke3 $1 {[%emt 0:00:30]} Nf5+ {[%emt 0:00:29]} 66. Kf3 {[%emt 0:00:27]} f6 {[%emt 0:00:28]} 67. g4 {[%emt 0:00:32]} Nd4+ {[%emt 0:00:28]} 68. Ke4 {[%emt 0:00:28]} fxe5 $2 {[%emt 0:00:32]} (68... Ne2 69. Nb3 Nc3+ 70. Kf5 Nd5) 69. fxe5 {[%emt 0:00:29]} Nc6 {[%emt 0:00:33]} 70. Kf5 {[%emt 0:00:29]} Kf7 {[%emt 0:00:33]} 71. e6+ {[%emt 0:00:37]} Ke7 {[%emt 0:00:28] [#]} 72. Kg6 $2 {[%emt 0:00:28]} (72. Nb3 $1 $18 {Hoping for Kg6.} Ke8 73. Nd2) 72... Ne5+ $11 {[%emt 0:00:28]} 73. Kxg7 {[%emt 0:00:32]} Nxg4 {[%emt 0:00:28]} 74. Kg6 {[%emt 0:00:28]} Kd6 75. Kf7 {[%emt 0:00:32] White wants to mate with Nd3.} Ne5+ {[%emt 0:01:07]} 76. Kg7 {[%emt 0:00:30][%cal Og7h6]} Nc6 $2 {[%mdl 8192] [#] This costs Black the game.} (76... Ng4 $11) 77. Kxh6 $1 {[%emt 0:00:30] White mates.} Kxc5 78. Kg7 Kd6 {[%emt 0:01:34]} 79. h6 {[%emt 0:00:55]} Nd8 {[%emt 0:00:30]} 80. h7 {[%emt 0:00:28]} Nxe6+ {[%emt 0:00:28]} 81. Kf6 {[%emt 0:00:29] Weighted Error Value: White=0.13 (very precise) /Black=0.22 (precise)} 1-0

[Event "79th LOTTO Polish-ch 2022"]
[Site "Kruszwica"]
[Date "2022.05.12"]
[Round "2.5"]
[White "Tomczak, Jacek"]
[Black "Socko, Bartosz"]
[Result "1-0"]
[ECO "B11"]
[WhiteElo "2584"]
[BlackElo "2636"]
[Annotator "TA"]
[PlyCount "165"]
[EventDate "2022.05.10"]
[EventType "k.o."]
[EventCountry "POL"]
[SourceTitle "playchess.com"]
[Source "ChessBase"]
[SourceQuality "1"]
[TimeControl "40/5400+30:1800+30"]

{[%evp 10,165,10,10,25,25,29,20,21,6,8,0,6,0,0,0,0,8,7,0,6,5,14,8,7,0,0,0,0,0,0,0,0,0,0,0,0,0,0,0,6,0,8,0,0,0,0,0,0,0,0,0,0,0,20,0,0,0,0,0,0,0,0,0,0,0,0,0,0,0,0,0,0,0,0,0,0,0,0,0,0,0,0,0,0,0,0,0,0,0,0,-450,0,0,0,0,0,0,0,0,0,0,0,0,0,0,0,0,0,0,0,0,0,0,0,0,12839,12839,12843,12844,12850,12850,27993,27993,27994,0,27994,27993,27997,27993,27998,27997,27998,27997,27998,27998,27999,27997,27998,27996,27997,27997,27998,27997,27999,27997,27998,27998,27996,27996,27997,27997,27998,27997,27998,27998,27999,27999]} 1. e4 {[%emt 1:25:56]} c6 {[%emt 1:25:55]} 2. Nc3 {[%emt 0:00:28]} d5 {[%emt 0:00:28]} 3. Nf3 {[%emt 0:00:28]} Bg4 {[%emt 0:00:28]} 4. h3 {[%emt 0:00:28]} Bxf3 {[%emt 0:00:28]} 5. Qxf3 {[%emt 0:00:29]} e6 {[%emt 0:00:28]} 6. Be2 {[%emt 0:00:28][%cal Bf1e2,Be2d1,Bd1c2][%mdl 32]} Bc5 {[%emt 0:00:30][%cal Bf8c5,Bc5d4,Bd4e5][%mdl 32] B11: Caro-Kann: Two Knights Variation.} 7. O-O {[%emt 0:00:29]} Nd7 {[%emt 0:00:28]} 8. Qg3 {[%emt 0:00:29]} Bd4 {[%emt 0:00:28] The position is equal.} (8... Ngf6 {with more complications.} 9. exd5 cxd5 10. Qxg7 Rg8) 9. exd5 {[%emt 0:00:28]} exd5 {[%emt 0:00:29]} 10. Bd1 {[%emt 0:00:29]} Ne7 {[%emt 0:00:30]} 11. Ne2 {[%emt 0:00:28]} Be5 {[%emt 0:00:28]} 12. Qf3 {[%emt 0:00:30]} O-O {[%emt 0:00:32]} 13. d4 {[%emt 0:00:28] [#]} Bc7 $146 {[%emt 0:00:28]} ({Predecessor:} 13... Bd6 14. c3 Ng6 15. Bc2 Qf6 16. Qxf6 Nxf6 17. g3 Rfe8 18. Bd3 Re6 19. c4 dxc4 20. Bxc4 {1-0 (61) McShane,L (2655)-Ghasi,A (2485) London 2021}) 14. c3 {[%emt 0:00:29]} Nf6 {[%emt 0:00:38]} 15. Bc2 {[%emt 0:00:29]} Ng6 {[%emt 0:00:34]} 16. Bg5 {[%emt 0:00:39]} Qd6 $1 {[%emt 0:00:31][%csl Gc7][%cal Rd6h2]} 17. g3 {[%emt 0:00:59]} Ne4 $1 {[%emt 0:00:34]} 18. Bxe4 {[%emt 0:00:32]} dxe4 {[%emt 0:00:29]} 19. Qxe4 {[%emt 0:00:30]} Rae8 {[%emt 0:00:28]} 20. Qf3 {[%emt 0:00:46]} Qe6 {[%emt 0:00:35][%csl LRe2,LRh3]} 21. Nf4 {[%emt 0:00:51]} Bxf4 {[%emt 0:01:01][%mdl 64] Remove Defender} 22. Bxf4 {[%emt 0:00:30]} Nxf4 {[%emt 0:01:20]} 23. Qxf4 {[%emt 0:00:29]} Qxh3 {[%emt 0:00:30]} 24. Rfe1 {[%emt 0:00:28]} Qd7 {[%emt 0:00:38]} 25. Qf3 {[%emt 0:00:51]} Re6 {[%emt 0:00:36]} 26. Rxe6 {[%emt 0:00:57]} Qxe6 $11 {[%emt 0:00:28][%mdl 4096] Endgame KQR-KQR} (26... fxe6 {is more complex.} 27. Qe2 Qd5 28. c4 Qxd4 29. Qxe6+ Rf7) 27. Qe3 {[%emt 0:00:29]} Re8 {[%emt 0:01:20]} 28. Qxe6 {[%emt 0:00:29]} Rxe6 {[%emt 0:00:28] KR-KR} 29. Kf1 {[%emt 0:00:28] Against Re2} f5 {[%emt 0:00:36]} 30. a4 {[%emt 0:00:45]} Kf7 {[%emt 0:00:30]} 31. a5 {[%emt 0:00:30]} a6 {[%emt 0:00:41]} 32. Ra4 {[%emt 0:00:39]} g5 {[%emt 0:00:35]} 33. Rc4 {[%emt 0:00:57]} Kf6 {[%emt 0:00:33]} 34. Kg2 {[%emt 0:00:36]} h5 {[%emt 0:00:38]} 35. Rb4 {[%emt 0:00:39]} Re7 {[%emt 0:00:28]} 36. Rc4 {[%emt 0:00:40]} Re2 {[%emt 0:00:34]} 37. Rb4 {[%emt 0:00:29]} Re7 {[%emt 0:00:28]} 38. Rc4 {[%emt 0:00:27]} g4 {[%emt 0:00:37][%cal Of5f4]} 39. Kf1 {[%emt 0:01:23]} Kg5 {[%emt 0:00:45]} 40. Rc5 {[%emt 0:00:29]} Kf6 {[%emt 0:00:28]} 41. Rc4 {[%emt 0:30:30]} Kg6 {[%emt 0:30:37]} 42. Rc5 {[%emt 0:00:34]} Kg5 {[%emt 0:00:33]} 43. b4 {[%emt 0:00:51]} Kf6 {[%emt 0:00:34]} 44. d5 {[%emt 0:00:38]} cxd5 {[%emt 0:01:24]} 45. Rxd5 {[%emt 0:00:28]} Rc7 {[%emt 0:00:32]} 46. Rd6+ {[%emt 0:00:32]} Ke5 {[%emt 0:00:28]} 47. Rb6 {[%emt 0:00:28]} f4 {[%emt 0:00:31]} 48. gxf4+ {[%emt 0:00:42]} Kxf4 {[%emt 0:00:28]} 49. Kg2 {[%emt 0:00:32]} h4 {[%emt 0:00:28][%cal Bh5h4,Bh4h3][%mdl 32]} 50. Rf6+ $2 {[%emt 0:00:35][%mdl 8192]} (50. b5 $11) 50... Ke5 $2 {[%emt 0:00:35]} (50... Kg5 $19 51. Re6 h3+ 52. Kh2 Rxc3) 51. Rh6 {[%emt 0:00:37]} h3+ {[%emt 0:00:41]} 52. Kg3 {[%emt 0:00:28]} Rxc3+ {[%emt 0:00:29]} 53. Kxg4 {[%emt 0:00:29]} Rc4+ {[%emt 0:00:28]} 54. Kg5 {[%emt 0:00:29]} Rxb4 {[%emt 0:00:34]} 55. Rxh3 {[%emt 0:00:28]} Rb1 {[%emt 0:00:43]} 56. Re3+ {[%emt 0:00:31]} Kd4 {[%emt 0:00:28]} 57. Re7 {[%emt 0:00:31]} Kd5 {[%emt 0:00:36]} 58. f4 {[%emt 0:00:29][%cal Bf2f4,Bf4f5,Bf5f6,Bf6f7][%mdl 32]} Kd6 {[%emt 0:00:29]} 59. Rh7 {[%emt 0:00:28]} Kc6 {[%emt 0:00:29]} 60. f5 {[%emt 0:00:29] Hoping for f6.} Rb5 {[%emt 0:00:28]} 61. Kg6 {[%emt 0:00:33]} Rxa5 {[%emt 0:00:35]} 62. f6 {[%emt 0:00:28]} Rd5 $2 {[%emt 0:00:29][%mdl 8192] [#]} (62... Ra2 $11) 63. f7 $1 $18 {[%emt 0:00:36]} Rd8 {[%emt 0:00:28] [#]} 64. Rg7 $1 {[%emt 0:00:32]} ({Less strong is} 64. Kg7 b5 $16) 64... Rf8 {[%emt 0:00:36]} 65. Rg8 {[%emt 0:00:28][%mdl 64] Trapped Piece} Rxf7 {[%emt 0:00:27]} 66. Kxf7 {[%emt 0:00:28] KR-KPP} Kd5 {[%emt 0:00:31]} 67. Kf6 {[%emt 0:00:32]} b5 $2 {[%emt 0:00:28][%mdl 8192]} (67... a5 $11) 68. Kf5 {[%emt 0:00:28] White mates.} Kd4 {[%emt 0:00:28]} 69. Kf4 {[%emt 0:00:28]} Kd3 {[%emt 0:00:31]} 70. Rd8+ {[%emt 0:00:30]} Kc2 {[%emt 0:00:28]} 71. Ke3 {[%emt 0:00:29]} b4 {[%emt 0:00:28]} 72. Rc8+ {[%emt 0:00:29]} Kb2 {[%emt 0:00:28]} 73. Kd3 {[%emt 0:00:35]} b3 {[%emt 0:00:34]} 74. Ra8 {[%emt 0:00:37]} Kc1 {[%emt 0:00:28]} 75. Rc8+ {[%emt 0:00:32]} Kb2 {[%emt 0:00:30]} 76. Rc5 {[%emt 0:00:30]} Kb1 {[%emt 0:00:29]} 77. Kc3 {[%emt 0:00:32]} b2 {[%emt 0:00:28]} 78. Kb3 {[%emt 0:00:29]} a5 {[%emt 0:00:30]} 79. Rxa5 {[%emt 0:00:30]} Kc1 {[%emt 0:00:29]} 80. Rc5+ {[%emt 0:00:28]} Kb1 {[%emt 0:00:28]} 81. Rc6 {[%emt 0:00:31]} ({Not} 81. Rc2 Ka1 82. Rxb2 $11) 81... Ka1 {[%emt 0:00:28]} 82. Ra6+ {[%emt 0:00:28]} Kb1 {[%emt 0:00:28]} 83. Ra2 {[%emt 0:00:28] White used his chance.  Weighted Error Value: White=0.18 (very precise) /Black=0.10 (very precise)} 1-0